bitfinex-derivatives/quotes_ETHF0:USTF0_20220108
["timestamp","ask_amount","ask_price","bid_price","bid_amount"]
[1641601522919,0.640787,3212.7,3212.4,1.23555324]
[1641601523121,0.640787,3212.7,3211.9,2.00479]
[1641601523719,1.5,3212.6,3211.9,2.00479]
[1641601523920,1.5,3212.4,3211.9,2.00479]
[1641601524120,1.5,3212.4,3210.8,31.3449]
[1641601524320,1.5,3211.9,3210.9,2.47309]
[1641601525922,2.00479,3212.1,3211.8,4.0]
[1641601526124,4.45397235,3212.9,3211.9,2.140787]
[1641601526322,2.01389549,3217.1,3212.8,4.00958]
[1641601526323,2.00479,3214.1,3212.8,4.00958]
[1641601526526,2.00479,3214.1,3213.1,4.0]
[1641601526723,1.5,3214.0,3212.8,4.00958]
[1641601526923,4.92366481,3213.3,3213.0,1.39730014]
[1641601527123,4.92366481,3213.3,3213.1,0.264788]
[1641601527322,2.00479,3214.1,3213.1,0.264788]
[1641601528326,2.00479,3214.1,3213.3,2.00479]
[1641601528523,0.640787,3214.0,3213.3,2.00479]
[1641601528724,1.5,3213.7,3213.3,2.00479]
[1641601528926,0.640787,3214.0,3213.3,2.00479]
[1641601529128,0.640787,3214.0,3213.4,0.905575]
[1641601529726,0.640787,3214.0,3213.3,2.00479]
[1641601529934,0.640787,3214.0,3213.4,1.09363498]
[1641601530941,0.640787,3214.0,3213.4,0.80259849]
[1641601531338,2.140787,3214.0,3213.4,0.80259849]
[1641601531639,0.640787,3214.0,3213.4,0.80259849]
[1641601531840,2.140787,3214.0,3213.4,0.80259849]
[1641601532040,0.640787,3214.0,3213.4,0.80259849]
[1641601534042,2.140787,3214.0,3213.4,0.80259849]
[1641601534243,1.5,3213.5,3213.4,0.80259849]
[1641601534645,3.50479,3213.5,3212.5,4.0]
[1641601534944,3.09469935,3213.4,3212.5,4.0]
[1641601535347,3.09469935,3213.4,3212.6,1.2070393]
[1641601535546,0.640787,3213.3,3212.6,1.2070393]
[1641601536347,0.640787,3213.3,3212.7,0.640787]
[1641601536550,2.00479,3213.1,3212.6,1.4718273]
[1641601538253,2.00479,3213.1,3212.6,1.2070393]
[1641601539352,2.00479,3213.1,3212.7,0.264788]
[1641601540755,2.00479,3213.1,3212.8,4.979924]
[1641601541156,2.00479,3213.1,3212.6,1.2070393]
[1641601541355,2.00479,3213.1,3212.7,0.905575]
[1641601541754,2.00479,3213.1,3212.7,5.885577]
[1641601541956,2.00479,3213.1,3212.7,4.980002]
[1641601542157,2.00479,3213.1,3212.6,1.2070393]
[1641601542757,2.00479,3213.1,3212.7,4.980002]
[1641601543157,2.645577,3213.1,3212.7,4.980002]
[1641601544958,2.645577,3213.1,3212.6,1.2070393]
[1641601545559,2.645577,3213.1,3212.6,1.4718273]
[1641601545959,2.645577,3213.1,3212.6,2.1126143]
[1641601546358,2.00479,3213.1,3212.6,2.1126143]
[1641601549162,2.00479,3213.5,3212.6,2.1126143]
[1641601550764,2.00479,3213.5,3212.9,2.00479]
[1641601551062,2.00479,3213.5,3213.0,0.264788]
[1641601551265,2.00479,3213.5,3213.1,0.95754749]
[1641601551663,2.00479,3213.5,3213.2,0.264788]
[1641601552366,2.00479,3213.9,3213.3,0.640787]
[1641601552566,2.00479,3213.9,3213.4,0.264788]
[1641601552765,2.00479,3213.9,3213.4,2.269578]
[1641601554768,2.00479,3214.4,3213.8,4.0]
[1641601554967,2.00479,3214.4,3213.9,0.264788]
[1641601555167,2.00479,3214.4,3214.0,0.344554]
[1641601555369,4.42961755,3214.5,3214.0,0.344554]
[1641601555567,4.42961755,3214.5,3214.1,5.242698]
[1641601556169,37.94831755,3214.9,3214.1,5.242698]
[1641601556375,4.42961755,3214.9,3214.1,5.242698]
[1641601556870,6.43440755,3214.9,3214.2,3.11748538]
[1641601557269,0.640787,3214.8,3214.3,5.242156]
[1641601557669,4.42961755,3214.7,3214.3,5.242156]
[1641601557870,4.69440555,3214.7,3214.3,4.28187671]
[1641601558070,4.69440555,3214.7,3214.2,3.11748538]
[1641601558672,4.42961755,3214.6,3214.2,3.11748538]
[1641601558875,1.5,3214.5,3214.2,3.11748538]
[1641601559072,1.764788,3214.5,3214.2,3.11748538]
[1641601559872,0.264788,3214.5,3214.2,3.11748538]
[1641601560272,4.92084691,3214.6,3214.2,3.11748538]
[1641601560473,4.92084691,3214.6,3214.2,2.08274057]
[1641601560671,4.92084691,3214.6,3214.3,0.264788]
[1641601561273,4.92084691,3214.7,3214.3,0.264788]
[1641601563580,0.264788,3214.8,3214.3,0.264788]
[1641601563581,4.92084691,3214.6,3214.3,0.264788]
[1641601563777,4.92084691,3214.6,3214.2,1.72784132]
[1641601564475,4.92084691,3214.6,3214.3,4.0]
[1641601564676,5.77547389,3215.1,3214.5,2.00479]
[1641601565078,5.77547389,3215.1,3214.6,4.976981]
[1641601565277,5.77547389,3215.1,3214.6,5.11742403]
[1641601565478,5.77547389,3215.5,3214.6,5.11742403]
[1641601565679,5.77547389,3215.5,3214.7,1.07571048]
[1641601565979,5.77547389,3215.5,3214.8,5.321071]
[1641601566178,5.77547389,3215.5,3214.8,5.46151403]
[1641601566580,5.77547389,3215.5,3214.8,5.321071]
[1641601566779,4.44437103,3214.9,3214.8,5.321071]
[1641601567180,42.20245916,3215.8,3214.8,5.321071]
[1641601567981,39.22217389,3215.8,3214.8,5.321071]
[1641601568683,5.77547389,3215.8,3215.4,2.00479]
[1641601568883,5.77547389,3215.8,3215.5,0.344554]
[1641601569084,2.00479,3215.9,3215.5,0.344554]
[1641601569383,2.269578,3215.9,3215.5,0.344554]
[1641601569882,2.269578,3215.9,3215.6,0.85324213]
[1641601570685,2.269578,3215.9,3215.6,0.1304932]
[1641601571091,2.269578,3215.9,3215.4,2.00479]
[1641601571294,1.5,3215.5,3214.5,2.00479]
[1641601571494,1.5,3215.7,3214.5,2.00479]
[1641601571891,0.640787,3215.8,3214.5,2.00479]
[1641601572492,1.5,3215.7,3214.5,2.00479]
[1641601572893,1.5,3215.7,3214.9,2.00479]
[1641601573093,1.5,3215.4,3215.0,1.20134221]
[1641601573693,0.264788,3215.3,3215.0,1.20134221]
[1641601574494,0.264788,3215.3,3215.0,0.68024999]
[1641601576195,0.264788,3215.3,3215.0,1.02480399]
[1641601578698,3.73317801,3215.8,3215.0,1.02480399]
[1641601578897,0.264788,3215.7,3215.0,1.02480399]
[1641601583905,1.18651404,3216.8,3215.6,7.0]
[1641601584101,1.18651404,3216.8,3215.1,8.264788]
[1641601584102,5.374,3218.6,3216.7,7.0]
[1641601584303,5.79626643,3217.0,3216.9,1.5]
[1641601584503,6.05983304,3218.5,3216.9,1.5]
[1641601584705,5.93563304,3218.5,3217.3,4.0]
[1641601584903,4.49543304,3218.5,3218.1,2.00479]
[1641601585102,4.49543304,3218.5,3218.1,3.50479]
[1641601585402,2.00479,3218.9,3218.1,3.50479]
[1641601585602,2.00479,3218.9,3218.2,0.264788]
[1641601586003,2.00479,3218.9,3218.2,1.06212991]
[1641601586202,2.00479,3218.9,3218.3,0.640787]
[1641601586403,2.00479,3218.9,3218.4,1.764788]
[1641601587304,2.00479,3218.9,3218.5,1.5]
[1641601587604,5.74308275,3219.6,3218.7,1.5]
[1641601587803,4.97698275,3219.6,3219.5,1.5]
[1641601588003,4.57598275,3219.6,3219.5,1.764788]
[1641601588203,6.56352315,3220.5,3219.5,1.764788]
[1641601588404,6.44502315,3220.5,3219.7,1.5]
[1641601588603,6.44502315,3220.5,3219.6,0.8341011]
[1641601588604,13.5,3220.4,3219.8,0.905575]
[1641601588902,13.796233,3220.4,3219.8,2.00479]
[1641601589102,13.796233,3220.4,3219.6,0.8341011]
[1641601589303,13.5,3220.0,3218.6,4.63]
[1641601589503,0.296233,3220.4,3219.0,1.5]
[1641601589706,0.296233,3220.4,3218.8,1.5]
[1641601589903,0.296233,3220.4,3219.2,1.5]
[1641601590104,0.296233,3220.4,3218.6,3.13]
[1641601590403,0.296233,3220.4,3219.2,1.5]
[1641601591005,2.00479,3219.6,3219.0,4.0]
[1641601591205,2.00479,3219.6,3219.1,0.905575]
[1641601591403,2.00479,3219.6,3219.2,1.5]
[1641601591606,2.00479,3219.6,3219.3,0.264788]
[1641601592605,2.00479,3219.6,3219.4,0.79282593]
[1641601592803,2.00479,3219.6,3219.5,0.264788]
[1641601595007,2.00479,3219.6,3219.5,1.764788]
[1641601595509,2.00479,3219.6,3219.5,0.264788]
[1641601597112,1.39979,3219.6,3219.5,1.764788]
[1641601597312,2.00479,3220.1,3219.5,1.764788]
[1641601597510,2.00479,3220.1,3219.5,5.234426]
[1641601597810,2.00479,3220.1,3219.8,1.5]
[1641601598110,2.00479,3220.1,3219.9,0.905575]
[1641601598310,2.00479,3220.1,3219.9,2.26486818]
[1641601598511,2.00479,3220.1,3219.9,1.62408118]
[1641601598712,15.50479,3220.1,3219.9,1.35929318]
[1641601599212,2.00479,3220.1,3219.9,1.35929318]
[1641601600212,2.00479,3220.1,3219.9,2.26486818]
[1641601600414,13.5,3220.0,3219.9,2.26486818]
[1641601601315,13.0269,3220.0,3219.9,2.00008018]
[1641601601713,13.0269,3220.0,3219.9,3.50008018]
[1641601602317,13.0269,3220.0,3219.9,2.00008018]
[1641601603414,13.0269,3220.0,3219.9,1.35929318]
[1641601603815,13.0269,3220.0,3219.9,2.00008018]
[1641601606220,13.0269,3220.0,3219.0,2.46709]
[1641601606420,13.0269,3220.0,3219.0,0.4623]
[1641601607021,2.00479,3220.1,3219.0,0.4623]
[1641601607022,13.0269,3219.2,3219.0,0.4623]
[1641601607220,13.0269,3219.2,3219.0,0.806854]
[1641601607521,12.8419,3219.2,3219.0,0.806854]
[1641601608221,12.8419,3219.2,3219.1,1.34090494]
[1641601609825,12.8419,3219.2,3219.1,2.84090494]
[1641601610424,2.00479,3220.1,3219.1,2.84090494]
[1641601610623,2.00479,3220.1,3219.1,1.34090494]
[1641601610828,2.00479,3220.1,3219.2,4.969561]
[1641601611023,2.00479,3220.1,3219.6,3.50479]
[1641601611225,2.00479,3220.1,3219.7,0.609342]
[1641601611428,15.50479,3220.1,3219.7,1.83510888]
[1641601612226,15.04999,3220.1,3219.7,1.83510888]
[1641601613026,15.04999,3220.1,3219.8,1.5]
[1641601614228,15.04999,3220.1,3219.9,0.264788]
[1641601616630,15.04999,3220.1,3220.0,1.5]
[1641601616831,15.04999,3220.1,3219.9,0.264788]
[1641601619236,15.04999,3220.1,3219.7,1.22576688]
[1641601620740,15.04999,3220.1,3219.8,1.5]
[1641601620943,15.04999,3220.1,3219.7,1.22576688]
[1641601621943,15.04999,3220.1,3219.8,0.264788]
[1641601623152,1.54999,3220.1,3219.8,0.264788]
[1641601623347,15.04999,3220.1,3219.8,0.264788]
[1641601626351,15.04999,3220.1,3219.8,1.764788]
[1641601626552,15.04999,3220.1,3219.8,0.264788]
[1641601626954,15.04999,3220.1,3219.8,1.764788]
[1641601627153,15.04999,3220.1,3219.8,0.264788]
[1641601628853,1.54999,3220.1,3220.0,1.5]
[1641601629054,13.5,3220.5,3220.0,1.764788]
[1641601629353,13.5,3220.5,3220.0,0.264788]
[1641601629853,14.140787,3220.5,3220.0,0.264788]
[1641601631856,14.140787,3220.5,3219.7,1.22576688]
[1641601632056,0.264788,3220.4,3219.7,1.106565]
[1641601632256,0.264788,3220.4,3219.8,0.264788]
[1641601633359,0.264788,3220.4,3219.9,1.5]
[1641601634057,0.264788,3220.4,3220.3,1.5]
[1641601634257,0.264788,3220.4,3220.3,2.64343184]
[1641601634458,0.264788,3220.4,3220.3,1.14343184]
[1641601635258,0.264788,3220.4,3219.3,2.00479]
[1641601635458,0.264788,3220.4,3219.2,1.5]
[1641601635759,0.264788,3220.4,3219.0,0.4623]
[1641601635961,13.5,3220.3,3219.5,1.5]
[1641601636158,0.264788,3220.2,3219.3,1.5]
[1641601637158,2.00479,3219.5,3219.4,1.5]
[1641601637860,2.00479,3219.5,3219.4,1.764788]
[1641601638260,2.00479,3219.5,3219.4,1.26391543]
[1641601638759,2.00479,3219.5,3219.4,0.99912743]
[1641601638964,15.50479,3219.5,3219.3,1.34368143]
[1641601639160,15.50479,3219.5,3219.3,0.93358625]
[1641601639964,0.264788,3219.4,3219.3,0.93358625]
[1641601642468,17.67656949,3219.4,3219.3,0.93358625]
[1641601642667,17.67656949,3219.4,3219.1,1.04163576]
[1641601642867,0.56641375,3219.2,3217.8,0.93358625]
[1641601643067,0.56641375,3218.4,3217.2,4.0]
[1641601643268,0.905575,3218.3,3217.8,2.00479]
[1641601643470,0.56641375,3218.4,3217.8,2.00479]
[1641601643670,0.56641375,3218.2,3217.2,4.93358625]
[1641601643869,0.56641375,3218.2,3218.1,0.0001]
[1641601644069,0.264788,3218.3,3218.1,0.93368625]
[1641601644368,2.00479,3218.6,3218.1,0.93368625]
[1641601644572,2.00479,3218.6,3218.4,0.93358625]
[1641601644772,20.38162202,3218.6,3218.1,0.0001]
[1641601644969,6.88162202,3218.6,3217.3,4.93358625]
[1641601645169,6.88162202,3218.6,3218.0,2.00479]
[1641601645369,0.56641375,3218.1,3218.0,2.00479]
[1641601645770,0.83120175,3218.1,3218.0,2.00479]
[1641601645970,0.83120175,3218.1,3218.0,3.35011834]
[1641601646368,0.83120175,3218.1,3218.0,2.40936691]
[1641601647174,0.264788,3218.1,3218.0,2.40936691]
[1641601647573,0.264788,3218.1,3218.0,1.34532834]
[1641601647773,0.83120175,3218.1,3218.0,1.34532834]
[1641601648575,0.264788,3218.1,3218.0,0.21034291]
[1641601649375,13.5,3218.2,3218.0,0.21034291]
[1641601650678,5.72760677,3218.4,3218.1,0.264788]
[1641601650877,5.72760677,3218.4,3218.1,1.19837425]
[1641601651078,5.76961394,3218.5,3218.2,0.17496501]
[1641601651280,5.02271394,3218.5,3218.4,2.00479]
[1641601651478,8.8209746,3219.0,3218.4,2.00479]
[1641601652077,8.1104746,3219.0,3218.4,2.00479]
[1641601652278,4.94459719,3218.6,3218.4,2.00479]
[1641601652476,4.94459719,3218.6,3218.4,1.73112965]
[1641601652677,4.94459719,3218.6,3218.5,5.46254766]
[1641601652877,2.00479,3219.4,3218.5,5.46254766]
[1641601653079,2.00479,3219.4,3218.5,10.43372966]
[1641601653478,4.94444882,3218.8,3218.6,0.34877397]
[1641601653677,2.00479,3219.7,3218.7,4.0]
[1641601653883,1.38479,3219.7,3219.3,4.0]
[1641601654279,1.38479,3219.7,3219.4,4.969715]
[1641601654678,1.38479,3219.7,3219.4,6.38986568]
[1641601654880,6.5066275,3219.8,3219.4,6.38986568]
[1641601655280,6.91901857,3219.9,3219.6,2.00479]
[1641601656581,1.15122603,3219.9,3219.6,2.00479]
[1641601656979,1.15122603,3219.9,3219.7,5.9156413]
[1641601657181,5.76779254,3220.1,3219.8,4.0]
[1641601657679,5.76779254,3220.1,3219.7,5.9156413]
[1641601657680,2.00479,3220.4,3219.7,0.91056017]
[1641601657880,2.00479,3220.4,3219.9,4.969021]
[1641601658281,2.00479,3220.4,3219.8,4.969098]
[1641601658481,2.00479,3220.4,3220.0,4.968712]
[1641601658682,2.00479,3220.4,3219.8,4.968789]
[1641601658982,2.00479,3220.4,3219.7,0.58993534]
[1641601659783,1.15122603,3219.9,3219.7,0.58993534]
[1641601660283,0.264788,3219.8,3219.7,0.58993534]
[1641601662983,0.264788,3219.8,3219.7,0.36394563]
[1641601664883,1.41601403,3219.8,3219.6,1.8002619]
[1641601665282,0.640787,3220.3,3219.6,1.8002619]
[1641601665483,5.76615959,3220.1,3219.6,1.8002619]
[1641601665683,5.76615959,3220.1,3219.6,2.14903587]
[1641601665883,5.76615959,3220.1,3219.6,1.8002619]
[1641601666084,5.76615959,3220.1,3219.7,4.969175]
[1641601666683,3.15601603,3220.4,3219.7,4.969175]
[1641601666885,1.15122603,3220.3,3219.7,4.969175]
[1641601667283,1.15122603,3220.3,3219.7,5.76298087]
[1641601667886,1.15122603,3220.5,3219.7,5.76298087]
[1641601668086,1.15122603,3220.3,3219.7,5.76298087]
[1641601668286,5.76615959,3220.6,3219.7,5.76298087]
[1641601668686,1.15122603,3220.3,3219.7,5.76298087]
[1641601668886,1.41601403,3220.3,3219.7,5.76298087]
[1641601669087,1.41601403,3220.3,3219.7,0.79380587]
[1641601669088,1.15122603,3219.9,3219.7,0.79380587]
[1641601669389,0.264788,3219.8,3219.7,0.79380587]
[1641601670188,0.264788,3219.8,3219.7,0.2868401]
[1641601672795,14.50122603,3220.2,3219.7,0.2868401]
[1641601672994,0.264788,3220.1,3219.7,0.2868401]
[1641601674093,0.013988,3220.1,3219.7,0.2868401]
[1641601674293,1.15122603,3219.8,3219.7,0.2868401]
[1641601675398,0.264788,3219.9,3219.7,0.2868401]
[1641601675597,0.264788,3219.9,3219.6,1.63083281]
[1641601675795,0.013988,3219.8,3219.6,1.63083281]
[1641601675995,1.15122603,3219.7,3219.6,1.63083281]
[1641601678002,1.15122603,3219.7,3219.6,1.78577774]
[1641601678201,1.15122603,3219.7,3219.6,2.94279124]
[1641601678401,1.15122603,3219.7,3219.6,2.78784631]
[1641601679002,1.16521403,3219.7,3219.6,2.94279066]
[1641601679806,1.15122603,3219.7,3219.6,2.94279066]
[1641601680606,1.16521403,3219.7,3219.6,2.94279066]
[1641601681307,1.16521403,3219.7,3219.6,2.4009526]
[1641601682313,4.93919814,3220.1,3219.6,2.4009526]
[1641601683110,0.013988,3220.0,3219.6,2.4009526]
[1641601683311,1.15122603,3219.7,3219.6,2.24600825]
[1641601687311,2.66521403,3219.7,3219.4,0.4708]
[1641601687514,1.15122603,3219.5,3219.4,0.4708]
[1641601687911,1.16521403,3219.5,3219.4,0.4708]
[1641601688514,19.45441217,3219.5,3219.4,0.4708]
[1641601689315,19.45441217,3219.5,3219.4,1.58344359]
[1641601689917,19.45441217,3219.5,3218.9,2.00479]
[1641601690121,1.15122603,3219.0,3218.4,0.4563]
[1641601690417,1.15122603,3218.5,3218.4,0.4563]
[1641601690716,1.16521403,3218.5,3218.4,0.4563]
[1641601691415,1.16521403,3218.5,3218.4,1.81380185]
[1641601692319,1.80600103,3218.5,3218.4,1.81380185]
[1641601692724,1.80600103,3218.5,3218.4,1.85e-06]
[1641601693120,1.80600103,3218.5,3218.4,0.46660185]
[1641601693520,15.15600103,3218.5,3218.4,0.46660185]
[1641601694724,15.15600103,3218.5,3218.4,1.85e-06]
[1641601695625,15.15600103,3218.5,3218.4,0.94717247]
[1641601698026,16.65600103,3218.5,3217.7,0.4569]
[1641601698226,13.35,3217.7,3215.5,66.8377]
[1641601698426,1.15122603,3216.8,3215.6,32.6756]
[1641601698627,1.80600103,3216.8,3215.6,33.02437397]
[1641601698926,1.80600103,3216.8,3216.7,0.62774025]
[1641601699126,1.80600103,3216.8,3216.7,1.48492586]
[1641601699326,1.15122603,3217.5,3216.7,1.48492586]
[1641601699527,16.50601603,3217.4,3216.7,1.48492586]
[1641601699726,15.35479,3217.4,3216.7,1.48492586]
[1641601700027,15.35479,3217.4,3216.8,0.42052825]
[1641601700227,15.35479,3217.4,3216.9,0.34877397]
[1641601700228,2.00479,3217.4,3216.9,0.34877397]
[1641601700428,4.4437426,3217.4,3217.1,0.34877397]
[1641601700626,4.4437426,3217.4,3217.0,4.973345]
[1641601700831,4.4437426,3217.4,3217.2,4.973191]
[1641601701026,6.09123601,3217.9,3217.1,0.15574025]
[1641601701227,6.09123601,3217.9,3217.1,5.12885425]
[1641601701429,6.09123601,3217.9,3217.3,4.973114]
[1641601701628,6.09123601,3217.9,3217.4,2.00479]
[1641601701831,6.09123601,3217.9,3217.4,2.16053025]
[1641601702029,6.09123601,3217.9,3217.5,0.264788]
[1641601702230,5.76615959,3219.2,3217.8,1.5]
[1641601702432,4.17948516,3218.7,3218.0,4.0]
[1641601702631,4.17948516,3218.7,3218.2,1.5]
[1641601702831,5.76615959,3219.2,3218.1,6.471105]
[1641601703034,5.13415959,3219.2,3218.3,4.971337]
[1641601703331,6.5066275,3219.7,3219.1,5.5]
[1641601703532,1.65313718,3220.2,3219.6,2.00479]
[1641601704032,1.65313718,3220.2,3219.7,0.264788]
[1641601704232,0.013988,3220.2,3219.9,1.5]
[1641601704432,2.00479,3220.6,3219.8,4.0]
[1641601704433,4.27376649,3220.9,3220.1,1.5]
[1641601704632,4.27376649,3220.9,3220.0,4.968866]
[1641601704833,1.5,3220.9,3220.2,4.968172]
[1641601705032,13.35,3221.2,3219.6,2.00479]
[1641601705033,1.5,3220.7,3219.6,2.00479]
[1641601705232,1.65300344,3221.4,3219.6,2.00479]
[1641601705233,1.65300344,3221.4,3219.9,1.5]
[1641601705432,1.65300344,3221.4,3219.9,5.5]
[1641601705733,2.00479,3221.3,3220.5,2.00479]
[1641601705933,2.00479,3221.3,3220.6,0.264788]
[1641601706234,2.00479,3221.3,3220.7,1.31574221]
[1641601706532,1.65300344,3221.4,3220.8,0.264788]
[1641601706836,1.65300344,3221.4,3220.8,40.8285049]
[1641601707233,4.93090315,3221.1,3220.8,40.8285049]
[1641601707634,4.93090315,3221.1,3220.9,2.00479]
[1641601707833,4.93090315,3221.1,3221.0,0.264788]
[1641601708034,4.93090315,3221.1,3221.0,5.232189]
[1641601708236,7.75751034,3221.6,3221.0,9.232189]
[1641601708434,7.10560349,3221.6,3221.5,4.0]
[1641601708634,1.35288315,3221.6,3221.5,0.264788]
[1641601708835,6.88781749,3222.0,3221.5,0.264788]
[1641601709033,6.88781749,3222.0,3221.9,4.0]
[1641601709233,6.88781749,3222.0,3221.6,3.13]
[1641601709434,4.14341081,3222.9,3221.9,5.98552518]
[1641601709634,2.00479,3222.3,3221.9,5.98552518]
[1641601709934,7.30844432,3222.3,3221.9,1.01958918]
[1641601710236,0.264788,3222.2,3221.9,1.01958918]
[1641601710434,2.00479,3222.6,3221.9,1.01958918]
[1641601710835,0.905575,3222.5,3222.0,4.965474]
[1641601711033,0.905575,3222.5,3221.9,1.01958918]
[1641601712033,14.255575,3222.5,3221.9,1.01958918]
[1641601712233,0.264788,3222.5,3221.9,1.28437718]
[1641601712433,2.00479,3222.6,3221.9,1.28437718]
[1641601712633,0.264788,3222.5,3221.9,1.28437718]
[1641601712833,0.640787,3222.4,3221.9,1.01958918]
[1641601713333,0.264788,3222.3,3221.9,1.01958918]
[1641601714135,9.99999999,3222.0,3221.5,4.00958]
[1641601714335,0.264788,3221.9,3220.9,1.5]
[1641601714535,0.264788,3221.9,3220.5,4.458]
[1641601714736,0.264788,3221.9,3220.5,5.958]
[1641601715337,0.264788,3221.9,3220.6,1.15507826]
[1641601715639,0.264788,3221.9,3221.5,2.00479]
[1641601716236,2.00479,3222.6,3221.8,1.5]
[1641601716436,2.00479,3222.6,3221.6,0.78812817]
[1641601716640,0.905575,3222.5,3221.6,0.78812817]
[1641601717838,9.99999999,3222.4,3221.6,0.78812817]
[1641601718039,0.264788,3222.3,3221.6,0.78812817]
[1641601720039,9.99999999,3222.2,3221.6,0.78812817]
[1641601720240,13.35,3221.7,3219.8,1.5]
[1641601720440,57.91739999,3221.7,3217.6,42.4625]
[1641601720942,9.99999999,3221.1,3219.3,0.28455714]
[1641601721144,47.9174,3221.7,3219.3,0.28455714]
[1641601721346,13.35,3220.7,3219.3,0.28455714]
[1641601721642,2.00479,3219.9,3219.1,2.00479]
[1641601721842,2.00479,3219.9,3219.3,1.5]
[1641601722041,2.00479,3219.9,3219.6,1.5]
[1641601722242,2.00479,3220.2,3219.8,1.5]
[1641601722642,2.00479,3220.2,3219.5,1.5]
[1641601722844,2.00479,3220.2,3219.6,0.264788]
[1641601723043,2.269578,3220.2,3219.6,1.08757268]
[1641601723243,0.640787,3220.1,3219.6,1.08757268]
[1641601723643,0.640787,3220.1,3219.6,3.09236268]
[1641601723846,0.264788,3220.0,3219.6,2.82757468]
[1641601724044,0.264788,3220.0,3219.6,0.82278468]
[1641601724244,0.264788,3220.0,3219.1,2.00479]
[1641601727856,0.264788,3220.0,3219.3,1.5]
[1641601728056,0.264788,3220.0,3219.4,0.81219933]
[1641601728757,0.264788,3220.0,3219.5,0.264788]
[1641601729657,0.264788,3220.0,3219.5,2.269578]
[1641601730259,2.00479,3220.2,3219.5,2.269578]
[1641601730461,2.269578,3220.2,3219.5,2.269578]
[1641601730661,0.640787,3220.1,3219.5,2.269578]
[1641601730960,0.640787,3220.1,3219.6,1.5]
[1641601731160,0.264788,3220.0,3219.6,1.5]
[1641601731362,0.264788,3220.0,3219.5,2.269578]
[1641601731561,0.264788,3220.0,3219.5,2.00479]
[1641601731960,0.264788,3220.0,3219.4,0.81219933]
[1641601732262,13.35,3219.7,3218.2,1.5]
[1641601732660,13.35,3219.7,3218.2,2.47785201]
[1641601732959,9.99999999,3219.5,3218.2,0.97785201]
[1641601733159,9.99999999,3218.8,3216.2,31.62258051]
[1641601733360,13.35,3218.7,3216.6,1.5]
[1641601733562,0.6511,3218.6,3216.6,1.5]
[1641601733763,2.00479,3217.8,3217.1,2.00479]
[1641601733962,0.905575,3217.7,3217.1,2.00479]
[1641601734363,14.255575,3217.7,3217.2,0.28544616]
[1641601734564,0.6511,3217.6,3215.6,0.4585]
[1641601734863,13.990787,3217.7,3215.6,0.4585]
[1641601735365,13.990787,3217.7,3214.7,23.83195352]
[1641601735564,13.990787,3217.7,3214.7,24.30605352]
[1641601735763,2.00479,3216.7,3215.9,2.00479]
[1641601735965,0.264788,3216.6,3215.9,2.00479]
[1641601736263,0.640787,3216.5,3215.9,2.00479]
[1641601736564,0.264788,3216.4,3215.9,2.00479]
[1641601736765,0.264788,3216.4,3216.0,1.078663]
[1641601740370,2.00479,3216.7,3216.1,0.264788]
[1641601740568,2.00479,3217.0,3216.1,0.264788]
[1641601740768,4.91911664,3219.5,3216.1,0.264788]
[1641601741470,51.34940247,3219.1,3216.1,0.264788]
[1641601741671,13.35,3218.9,3216.1,0.264788]
[1641601741873,2.00479,3217.6,3216.9,2.00479]
[1641601742169,0.905575,3217.5,3216.9,2.00479]
[1641601743472,0.905575,3217.5,3217.0,0.85082279]
[1641601743771,0.905575,3217.5,3217.0,1.11561079]
[1641601744169,0.905575,3217.5,3217.0,2.61561079]
[1641601745672,0.640787,3217.5,3217.0,2.61561079]
[1641601745872,0.640787,3217.5,3217.2,1.5]
[1641601746073,0.640787,3217.5,3217.0,1.11561079]
[1641601746272,0.905575,3217.5,3217.0,1.11561079]
[1641601747475,0.905575,3217.5,3217.0,0.85082279]
[1641601748275,0.905575,3217.5,3215.9,2.00479]
[1641601748276,9.99999999,3217.3,3215.9,2.00479]
[1641601748476,13.35,3217.2,3215.9,2.00479]
[1641601749174,13.35,3217.2,3216.0,1.37638568]
[1641601749375,9.99999999,3217.0,3216.0,1.37638568]
[1641601749576,13.35,3216.9,3216.0,1.37638568]
[1641601749777,13.35,3216.1,3216.0,1.37638568]
[1641601749975,0.905575,3216.1,3216.0,1.37638568]
[1641601751481,2.00479,3216.5,3216.0,2.87638568]
[1641601751676,2.00479,3216.5,3216.0,1.37638568]
[1641601751877,2.00479,3216.5,3216.1,6.979527]
[1641601752078,0.905575,3216.4,3216.1,6.979527]
[1641601752279,0.905575,3216.4,3216.1,2.00479]
[1641601758384,2.00479,3216.5,3216.3,1.5]
[1641601758684,2.00479,3216.5,3216.1,2.00479]
[1641601758985,2.00479,3216.5,3216.2,1.764788]
[1641601759283,2.00479,3216.5,3216.2,0.264788]
[1641601762086,2.00479,3216.5,3216.2,1.764788]
[1641601762488,2.00479,3216.5,3216.2,0.264788]
[1641601763591,2.00479,3216.5,3216.4,1.5]
[1641601763789,2.00479,3216.5,3216.4,0.264788]
[1641601765991,2.00479,3216.5,3216.4,1.764788]
[1641601766393,2.00479,3216.5,3216.4,0.264788]
[1641601768199,2.00479,3216.5,3216.4,1.764788]
[1641601768400,13.35,3218.4,3216.4,1.764788]
[1641601768599,13.35,3218.4,3216.4,0.264788]
[1641601768801,13.35,3218.4,3216.8,1.5]
[1641601769002,13.35,3218.4,3216.5,1.5]
[1641601769201,13.35,3218.2,3216.1,2.00479]
[1641601769401,13.35,3218.2,3216.5,1.5]
[1641601769804,2.00479,3217.3,3216.6,2.00479]
[1641601770002,2.00479,3217.3,3216.7,0.264788]
[1641601770204,2.645577,3217.3,3216.7,0.264788]
[1641601770404,2.645577,3217.3,3216.7,1.48587381]
[1641601771203,2.645577,3217.3,3217.0,1.5]
[1641601771403,2.645577,3217.3,3217.1,0.264788]
[1641601773102,2.645577,3217.3,3217.1,0.23830921]
[1641601773711,2.00479,3217.3,3217.1,0.23830921]